fUSD/lending_fUSD_20240109
["ID","MTS","AMOUNT","RATE_DAILY","PERIOD"]
[310976664,1704838289655,-500.0,0.0004126,30]
[310976665,1704838289665,-1798.77,0.0004126,30]
[310976666,1704838289676,-500.0,0.0004126,30]
[310976667,1704838289688,-500.0,0.0004126,30]
[310976668,1704838289699,-500.0,0.0004126,30]
[310976669,1704838289710,-3726.94,0.0004126,30]
[310976670,1704838289721,-9050.94,0.0004126,30]
[310976671,1704838289732,-4968.76,0.0004126,30]
[310976672,1704838289743,-967.65,0.0004126,30]
[310976673,1704838289754,-500.0,0.0004126,30]
[310976674,1704838289765,-500.0,0.0004126,30]
[310976675,1704838289776,-500.0,0.0004126,30]
[310976676,1704838289787,-500.0,0.0004126,30]
[310976677,1704838289798,-500.0,0.0004126,30]
[310976678,1704838289808,-3143.9,0.0004126,30]
[310976679,1704838289820,-500.0,0.0004126,30]
[310976680,1704838289830,-500.0,0.0004126,30]
[310976681,1704838289840,-500.0,0.0004126,30]
[310976682,1704838289850,-4640.82,0.0004126,30]
[310976683,1704838289859,-500.0,0.0004126,30]
[310976684,1704838289869,-3691.28,0.0004126,30]
[310976685,1704838289879,-361.50778822,0.0004126,2]
[310976686,1704838289902,-4801.8,0.0004126,30]
[310976687,1704838289912,-763.68,0.0004126,30]
[310976688,1704838289922,-500.0,0.0004126,30]
[310976689,1704838289932,-500.0,0.0004126,30]
[310976690,1704838289941,-500.0,0.0004126,30]
[310976691,1704838289951,-185.359581,0.0004126,14]
[310976692,1704838289961,-185.359581,0.0004126,14]
[310976693,1704838289971,-1212.84,0.0004126,30]
[310976694,1704838289980,-500.0,0.0004126,30]
[310976695,1704838289990,-500.0,0.0004126,30]
[310976696,1704838289999,-879.66,0.0004126,30]
[310976697,1704838290009,-808.69,0.0004126,30]
[310976698,1704838290018,-755.7,0.0004126,30]
[310976699,1704838290027,-500.0,0.0004126,30]
[310976700,1704838290036,-500.0,0.0004126,30]
[310976701,1704838290046,-2912.57,0.0004126,30]
[310976702,1704838290055,-1238.08,0.0004126,30]
[310976703,1704838290064,-502.43223971,0.0004126,30]
[310976704,1704838290074,-2784.54,0.0004126,30]
[310976705,1704838290083,-185.359581,0.0004126,14]
[310976706,1704838290092,-1161.59,0.0004126,30]
[310976707,1704838290101,-3777.11,0.0004126,30]
[310976708,1704838290110,-185.359581,0.0004126,14]
[310976709,1704838290119,-8677.14,0.0004126,30]
[310976710,1704838290128,-500.0,0.0004126,30]
[310976711,1704838290137,-500.0,0.0004126,30]
[310976712,1704838290146,-2676.02,0.0004126,30]
[310976713,1704838290155,-592.81,0.0004126,30]
[310976714,1704838290165,-500.0,0.0004126,30]
[310976715,1704838290174,-1639.34,0.0004126,30]
[310976716,1704838290183,-500.0,0.0004126,30]
[310976717,1704838290192,-500.0,0.0004126,30]
[310976718,1704838290201,-500.0,0.0004126,30]
[310976719,1704838290210,-1963.6,0.0004126,30]
[310976720,1704838290222,-3334.88,0.0004126,30]
[310976721,1704838290232,-500.0,0.0004126,30]
[310976722,1704838290241,-2139.94,0.0004126,30]
[310976723,1704838290252,-517.1,0.0004126,30]
[310976724,1704838290261,-500.0,0.0004126,30]
[310976725,1704838290271,-500.0,0.0004126,30]
[310976726,1704838290280,-500.0,0.0004126,30]
[310976727,1704838290289,-4276.14,0.0004126,30]
[310976728,1704838290298,-581.35527303,0.0004126,30]
[310976729,1704838290307,-500.0,0.0004126,30]
[310976730,1704838290319,-2333.49,0.0004126,30]
[310976731,1704838290329,-5902.3,0.0004126,30]
[310976732,1704838290339,-500.0,0.0004126,30]
[310976733,1704838290348,-3826.6,0.0004126,30]
[310976734,1704838290358,-500.0,0.0004126,30]
[310976735,1704838290367,-2082.79,0.0004126,30]
[310976736,1704838290376,-500.0,0.0004126,30]
[310976737,1704838290385,-500.0,0.0004126,30]
[310976738,1704838290394,-531.76,0.0004126,30]
[310976739,1704838290403,-500.0,0.0004126,30]
[310976740,1704838290412,-2908.78,0.0004126,30]
[310976741,1704838290422,-500.0,0.0004126,30]
[310976742,1704838290431,-500.0,0.0004126,30]
[310976743,1704838290440,-500.0,0.0004126,30]
[310976744,1704838290449,-1364.47,0.0004126,30]
[310976745,1704838290458,-588.57,0.0004126,30]
[310976746,1704838290467,-1379.01,0.0004126,30]
[310976747,1704838290477,-500.0,0.0004126,30]
[310976748,1704838290486,-769.62,0.0004126,30]
[310976749,1704838290496,-591.89,0.0004126,30]
[310976750,1704838290505,-500.0,0.0004126,30]
[310976751,1704838290514,-500.0,0.0004126,30]
[310976752,1704838290523,-4720.58,0.0004126,30]
[310976753,1704838290532,-518.23510799,0.0004126,30]
[310976754,1704838290541,-500.0,0.0004126,30]
[310976755,1704838290551,-500.0,0.0004126,30]
[310976756,1704838290560,-6067.59,0.0004126,30]
[310976757,1704838290571,-500.0,0.0004126,30]
[310976758,1704838290580,-500.0,0.0004126,30]
[310976759,1704838290589,-3994.31,0.0004126,30]
[310976760,1704838290599,-500.0,0.0004126,30]
[310976761,1704838290609,-500.0,0.0004126,30]
[310976762,1704838290619,-500.0,0.0004126,30]
[310976763,1704838290628,-500.0,0.0004126,30]
[310976764,1704838290638,-508.5042296,0.0004126,30]
[310976765,1704838290647,-552.23,0.0004126,30]
[310976766,1704838290657,-695.23,0.0004126,30]
[310976767,1704838290667,-500.0,0.0004126,30]
[310976768,1704838290677,-500.0,0.0004126,30]
[310976769,1704838290686,-500.0,0.0004126,30]
[310976770,1704838290696,-1473.45,0.0004126,30]
[310976771,1704838290706,-1459.91,0.0004126,30]
[310976772,1704838290715,-12710.79,0.0004126,30]
[310976773,1704838290725,-6096.97,0.0004126,30]
[310976774,1704838290735,-1115.38,0.0004126,30]
[310976775,1704838290744,-1656.2,0.0004126,30]
[310976776,1704838290754,-14431.54,0.0004126,30]
[310976777,1704838290763,-910.24,0.0004126,30]
[310976778,1704838290773,-2190.5,0.0004126,30]
[310976779,1704838290782,-544.6,0.0004126,30]
[310976780,1704838290792,-773.4,0.0004126,30]
[310976781,1704838290802,-542.59,0.0004126,30]
[310976782,1704838290811,-2105.66,0.0004126,30]
[310976783,1704838290822,-500.0,0.0004126,30]
[310976784,1704838290832,-500.0,0.0004126,30]
[310976785,1704838290842,-915.72,0.0004126,30]
[310976786,1704838290851,-1032.38,0.0004126,30]
[310976787,1704838290862,-14785.85,0.0004126,30]
[310976788,1704838290872,-1211.12,0.0004126,30]
[310976789,1704838290882,-500.0,0.0004126,30]
[310976790,1704838290892,-22037.22,0.0004126,30]
[310976791,1704838290901,-2087.61,0.0004126,30]
[310976792,1704838290911,-2690.56,0.0004126,30]
[310976793,1704838290921,-678.36,0.0004126,30]
[310976794,1704838290931,-500.0,0.0004126,30]
[310976795,1704838290941,-1158.78,0.0004126,30]
[310976796,1704838290951,-1200.26,0.0004126,30]
[310976797,1704838290961,-500.0,0.0004126,30]
[310976798,1704838290971,-500.0,0.0004126,30]
[310976799,1704838290981,-1698.21,0.0004126,30]
[310976800,1704838290990,-500.0,0.0004126,30]
[310976801,1704838291000,-868.29,0.0004126,30]
[310976802,1704838291010,-2233.54,0.0004126,30]
[310976803,1704838291022,-500.0,0.0004126,30]
[310976804,1704838291032,-308.97034156,0.0004126,30]
[310976805,1704838291041,-500.0,0.0004126,30]
[310976806,1704838291051,-500.0,0.0004126,30]
[310976807,1704838291061,-3590.14,0.0004126,30]
[310976808,1704838291074,-500.0,0.0004126,30]
[310976809,1704838291083,-696.1,0.0004126,30]
[310976810,1704838291093,-1289.91,0.0004126,30]
[310976811,1704838291103,-935.97,0.0004126,30]
[310976812,1704838291113,-500.0,0.0004126,30]
[310976813,1704838291122,-3087.45,0.0004126,30]
[310976814,1704838291132,-932.38,0.0004126,30]
[310976815,1704838291142,-1957.42,0.0004126,30]
[310976816,1704838291152,-1755.99,0.0004126,30]
[310976817,1704838291162,-1516.71,0.0004126,30]
[310976818,1704838291172,-2290.75,0.0004126,30]
[310976819,1704838291182,-500.0,0.0004126,30]
[310976820,1704838291193,-500.0,0.0004126,30]
[310976821,1704838291203,-469.0,0.0004126,30]
[310976822,1704838291213,-4490.81,0.0004126,30]
[310976823,1704838291224,-3587.54,0.0004126,30]
[310976824,1704838291235,-1124.84,0.0004126,30]
[310976825,1704838291245,-500.0,0.0004126,30]
[310976826,1704838291255,-2664.9,0.0004126,30]
[310976827,1704838291266,-500.0,0.0004126,30]
[310976828,1704838291277,-500.0,0.0004126,30]
[310976829,1704838291287,-1067.23,0.0004126,30]
[310976830,1704838291297,-1755.19,0.0004126,30]
[310976831,1704838291308,-627.07,0.0004126,30]
[310976832,1704838291321,-2101.87,0.0004126,30]
[310976833,1704838291331,-500.0,0.0004126,30]
[310976834,1704838291342,-866.03,0.0004126,30]
[310976835,1704838291352,-2150.53,0.0004126,30]
[310976836,1704838291362,-500.0,0.0004126,30]
[310976837,1704838291372,-500.0,0.0004126,30]
[310976838,1704838291382,-6286.35,0.0004126,30]
[310976839,1704838291391,-2616.94,0.0004126,30]
[310976840,1704838291402,-504.54014054,0.0004126,30]
[310976841,1704838291412,-860.95,0.0004126,30]
[310976842,1704838291422,-1060.0,0.0004126,30]
[310976843,1704838291432,-3664.14,0.0004126,30]
[310976844,1704838291443,-4736.49,0.0004126,30]
[310976845,1704838291453,-3610.83,0.0004126,30]
[310976846,1704838291464,-40785.28,0.0004126,30]
[310976847,1704838291473,-785.46,0.0004126,30]
[310976848,1704838291483,-536.330019,0.0004126,14]
[310976849,1704838291493,-500.0,0.0004126,30]
[310976850,1704838291504,-536.330019,0.0004126,14]
[310976851,1704838291514,-1340.08,0.0004126,30]
[310976852,1704838291524,-536.330019,0.0004126,14]
[310976853,1704838291535,-536.330019,0.0004126,14]
[310976854,1704838291783,-658.29,0.0004126,30]
[310976855,1704838291794,-673.12,0.0004126,30]
[310976856,1704838291803,-500.0,0.0004126,30]
[310976857,1704838291814,-8699.1,0.0004126,30]
[310976858,1704838291826,-1946.17,0.0004126,30]
[310976859,1704838291836,-2512.6,0.0004126,30]
[310976860,1704838291846,-616.9,0.0004126,30]
[310976861,1704838291856,-533.86,0.0004126,30]
[310976862,1704838291866,-500.0,0.0004126,30]
[310976863,1704838291876,-4221.43,0.0004126,30]
[310976864,1704838291886,-1228.81,0.0004126,30]
[310976865,1704838291896,-500.0,0.0004126,30]
[310976866,1704838291906,-1021.25,0.0004126,2]
[310976867,1704838291915,-8912.41,0.0004126,30]
[310976868,1704838291925,-1699.6,0.0004126,30]
[310976869,1704838291935,-2915.16,0.0004126,30]
[310976870,1704838291946,-2785.67,0.0004126,30]
[310976871,1704838291956,-1025.86,0.0004126,30]
[310976872,1704838291966,-500.0,0.0004126,30]
[310976873,1704838291976,-500.0,0.0004126,30]
[310976874,1704838291986,-981.9,0.0004126,30]
[310976875,1704838291997,-828.29,0.0004126,30]
[310976876,1704838292007,-626.56,0.0004126,30]
[310976877,1704838292017,-758.12,0.0004126,30]
[310976878,1704838292026,-872.5,0.0004126,30]
[310976879,1704838292037,-2738.31,0.0004126,30]
[310976880,1704838292047,-2432.43,0.0004126,30]
[310976881,1704838292056,-1493.27,0.0004126,30]
[310976882,1704838292067,-500.0,0.0004126,30]
[310976883,1704838292077,-1780.73,0.0004126,30]
[310976884,1704838292087,-500.0,0.0004126,30]
[310976885,1704838292097,-2880.3,0.0004126,30]
[310976886,1704838292111,-500.0,0.0004126,30]
[310976887,1704838292121,-2449.49,0.0004126,30]
[310976888,1704838292131,-500.0,0.0004126,30]
[310976889,1704838292142,-417.310268,0.0004126,14]
[310976890,1704838292152,-417.310268,0.0004126,14]
[310976891,1704838292162,-500.0,0.0004126,30]
[310976892,1704838292172,-500.0,0.0004126,30]
[310976893,1704838292183,-500.0,0.0004126,30]
[310976894,1704838292193,-919.25,0.0004126,30]
[310976895,1704838292204,-532.67,0.0004126,30]
[310976896,1704838292214,-515.49,0.0004126,30]
[310976897,1704838292226,-1342.25,0.0004126,30]
[310976898,1704838292236,-3619.65,0.0004126,30]
[310976899,1704838292247,-1684.71,0.0004126,30]
[310976900,1704838292257,-16615.54,0.0004126,30]
[310976901,1704838292270,-5020.76,0.0004126,30]
[310976902,1704838292281,-2277.23,0.0004126,30]
[310976903,1704838292291,-500.0,0.0004126,7]
[310976904,1704838292302,-500.0,0.0004126,30]
[310976905,1704838292314,-417.310268,0.0004126,14]
[310976906,1704838292327,-417.310268,0.0004126,14]
[310976907,1704838292337,-1808.27,0.0004126,30]
[310976908,1704838292348,-1296.63,0.0004126,30]
[310976909,1704838292358,-500.0,0.0004126,30]
[310976910,1704838292369,-500.0,0.0004126,30]
[310976911,1704838292379,-1976.34,0.0004126,30]
[310976912,1704838292390,-1539.01,0.0004126,30]
[310976913,1704838292402,-1666.86,0.0004126,30]
[310976914,1704838292412,-216.05380541,0.0004126,30]
[310976915,1704838292423,-948.22,0.0004126,30]
[310976916,1704838292435,-1205.56,0.0004126,30]
[310976917,1704838292446,-2079.61,0.0004126,30]
[310976918,1704838292456,-801.76,0.0004126,30]
[310976919,1704838292466,-4081.69,0.0004126,30]
[310976920,1704838292477,-3259.69,0.0004126,30]
[310976921,1704838292488,-500.0,0.0004126,30]
[310976922,1704838292499,-570.73,0.0004126,30]
[310976923,1704838292509,-1497.4,0.0004126,30]
[310976924,1704838292519,-717.5,0.0004126,30]
[310976925,1704838292530,-560.87637086,0.0004126,30]
[310976926,1704838292541,-500.0,0.0004126,30]
[310976927,1704838292551,-235.364519,0.0004126,14]
[310976928,1704838292562,-28570.96,0.0004126,30]
[310976929,1704838292577,-1778.5,0.0004126,30]
[310976930,1704838292588,-235.364519,0.0004126,14]
[310976931,1704838292599,-2771.91,0.0004126,30]
[310976932,1704838292610,-500.0,0.0004126,30]
[310976933,1704838292621,-1907.56,0.0004126,30]
[310976934,1704838292632,-500.0,0.0004126,30]
[310976935,1704838292642,-1123.88,0.0004126,30]
[310976936,1704838292652,-500.0,0.0004126,30]
[310976937,1704838292663,-4669.56,0.0004126,30]
[310976938,1704838292673,-5007.65,0.0004126,30]
[310976939,1704838292683,-500.0,0.0004126,30]
[310976940,1704838292693,-1486.69,0.0004126,30]
[310976941,1704838292704,-3322.13,0.0004126,30]
[310976942,1704838292714,-5248.46,0.0004126,30]
[310976943,1704838292724,-2423.33,0.0004126,30]
[310976944,1704838292734,-500.0,0.0004126,30]
[310976945,1704838292745,-544.33,0.0004126,30]
[310976946,1704838292755,-2505.63,0.0004126,30]
[310976947,1704838292766,-2340.4,0.0004126,30]
[310976948,1704838292776,-2974.2,0.0004126,30]
[310976949,1704838292787,-235.364519,0.0004126,14]
[310976950,1704838292797,-235.364519,0.0004126,14]
[310976951,1704838292807,-791.9,0.0004126,30]
[310976952,1704838292819,-585.8,0.0004126,30]
[310976953,1704838292830,-500.0,0.0004126,30]
[310976954,1704838292841,-500.0,0.0004126,30]
[310976955,1704838292852,-2998.41,0.0004126,30]
[310976956,1704838292863,-4396.89,0.0004126,30]
[310976957,1704838292874,-2200.45,0.0004126,30]
[310976958,1704838292886,-500.0,0.0004126,30]
[310976959,1704838292897,-669.83,0.0004126,30]
[310976960,1704838292907,-606.27,0.0004126,30]
[310976961,1704838292918,-500.0,0.0004126,30]
[310976962,1704838292928,-665.74,0.0004126,30]
[310976963,1704838292938,-1058.26,0.0004126,30]
[310976964,1704838292948,-151.0,0.0004126,14]
[310976965,1704838292958,-151.0,0.0004126,14]
[310976966,1704838292968,-500.0,0.0004126,30]
[310976967,1704838292978,-333.4011,0.00041298,8]
[310976968,1704838292988,-6557.51547715,0.000413,7]
[310976969,1704838292999,-17397.0,0.000413,5]
[310976970,1704838293008,-4721.61,0.000413,5]
[310976971,1704838293019,-315.4748089,0.00041314,2]
[310976972,1704838293028,-3071.9994913,0.00041314,2]
[310976973,1704838293038,-315.4748089,0.00041314,2]
[310976974,1704838293048,-8540.7901343,0.00041314,2]
[310976975,1704838293058,-150.0,0.00041327,60]
[310976976,1704838293069,-150.0,0.00041327,60]
[310976977,1704838293079,-150.0,0.00041341,60]
[310976978,1704838293089,-226.526954,0.00041342,14]
[310976979,1704838293099,-226.526954,0.00041342,14]
[310976980,1704838293108,-226.526954,0.00041342,14]
[310976981,1704838293118,-226.526957,0.00041342,14]
[310976982,1704838293130,-493.545168,0.00041342,14]
[310976983,1704838293139,-493.545176,0.00041342,14]
[310976984,1704838293149,-151.0,0.00041342,14]
[310976985,1704838293158,-151.0,0.00041342,14]
[310976986,1704838293168,-393.686593,0.00041342,14]
[310976987,1704838293178,-393.686589,0.00041342,14]
[310976988,1704838293188,-185.359581,0.00041342,14]
[310976989,1704838293198,-185.359581,0.00041342,14]
[310976990,1704838293208,-536.330019,0.00041342,14]
[310976991,1704838293218,-536.330019,0.00041342,14]
[310976992,1704838293228,-417.310268,0.00041342,14]
[310976993,1704838293238,-417.310268,0.00041342,14]
[310976994,1704838293247,-235.364519,0.00041342,14]
[310976995,1704838293257,-235.364519,0.00041342,14]
[310976996,1704838293267,-253.46172,0.00041342,14]
[310976997,1704838293277,-500.0,0.00041342,30]
[310976998,1704838293287,-500.0,0.00041342,30]
[310976999,1704838293297,-500.0,0.00041342,30]
[310977000,1704838293306,-807.24,0.00041342,30]
[310977001,1704838293318,-500.0,0.00041342,30]
[310977002,1704838293329,-500.0,0.00041342,30]
[310977003,1704838293338,-500.0,0.00041342,30]
[310977004,1704838293348,-500.0,0.00041342,30]
[310977005,1704838293358,-500.0,0.00041342,30]
[310977006,1704838293367,-500.0,0.00041342,30]
[310977007,1704838293377,-840.21,0.00041342,30]
[310977008,1704838293387,-500.0,0.00041342,7]
[310977009,1704838293397,-581.05,0.00041342,30]
[310977010,1704838293406,-981.24,0.00041342,30]
[310977011,1704838293416,-500.0,0.00041342,30]
[310977012,1704838293426,-841.98,0.00041342,30]
[310977013,1704838293436,-500.0,0.00041342,30]
[310977014,1704838293446,-500.0,0.00041342,30]
[310977015,1704838293455,-548.78,0.00041342,30]
[310977016,1704838293465,-659.63,0.00041342,30]
[310977017,1704838293475,-711.8,0.00041342,30]
[310977018,1704838293485,-184.49731599,0.00041342,30]
[310977019,1704838293494,-615.37,0.00041342,30]
[310977020,1704838293503,-648.25,0.00041342,30]
[310977021,1704838293512,-500.0,0.00041342,30]
[310977022,1704838293520,-500.0,0.00041342,30]
[310977023,1704838293529,-500.0,0.00041342,30]
[310977024,1704838293539,-550.5,0.00041342,30]
[310977025,1704838293549,-737.28,0.00041342,30]
[310977026,1704838293558,-500.0,0.00041342,30]
[310977027,1704838293569,-738.06,0.00041342,30]
[310977028,1704838293579,-500.0,0.00041342,30]
[310977029,1704838293588,-500.0,0.00041342,30]
[310977030,1704838293598,-500.0,0.00041342,30]
[310977031,1704838293607,-500.0,0.00041342,30]
[310977032,1704838293617,-500.0,0.00041342,30]
[310977033,1704838293627,-500.0,0.00041342,30]
[310977034,1704838293637,-549.09,0.00041342,30]
[310977035,1704838293646,-532.54,0.00041342,30]
[310977036,1704838293656,-500.0,0.00041342,30]
[310977037,1704838293666,-500.0,0.00041342,30]
[310977038,1704838293675,-500.0,0.00041342,30]
[310977039,1704838293685,-500.0,0.00041342,30]
[310977040,1704838293695,-500.0,0.00041342,30]
[310977041,1704838293705,-769.53,0.00041342,30]
[310977042,1704838293715,-619.92,0.00041342,30]
[310977043,1704838293725,-500.0,0.00041342,30]
[310977044,1704838293735,-500.0,0.00041342,30]
[310977045,1704838293746,-500.0,0.00041342,30]
[310977046,1704838293756,-500.0,0.00041342,30]
[310977047,1704838293765,-965.65,0.00041342,30]
[310977048,1704838293774,-500.0,0.00041342,5]
[310977049,1704838293784,-500.0,0.00041342,30]
[310977050,1704838293794,-246.56961248,0.00041342,30]
[310977051,1704838293804,-428.05774572,0.00041342,30]
[310977052,1704838293813,-500.0,0.00041342,30]
[310977053,1704838293826,-500.0,0.00041342,30]
[310977054,1704838293835,-306.03387842,0.00041342,30]
[310977055,1704838293845,-820.75,0.00041342,30]
[310977056,1704838293854,-500.0,0.00041342,30]
[310977057,1704838293864,-500.0,0.00041342,30]
[310977058,1704838293874,-500.0,0.00041342,30]
[310977059,1704838293884,-589.22,0.00041342,30]
[310977060,1704838293894,-500.0,0.00041342,30]
[310977061,1704838293903,-500.0,0.00041342,30]
[310977062,1704838293913,-500.0,0.00041342,30]
[310977063,1704838293922,-500.0,0.00041342,30]
[310977064,1704838293932,-500.0,0.00041342,30]
[310977065,1704838293941,-582.79,0.00041342,30]
[310977066,1704838293951,-631.03,0.00041342,30]
[310977067,1704838293961,-545.27,0.00041342,30]
[310977068,1704838293971,-500.0,0.00041342,30]
[310977069,1704838293981,-500.0,0.00041342,30]
[310977070,1704838293990,-659.73,0.00041342,30]
[310977071,1704838294000,-500.0,0.00041342,30]
[310977072,1704838294010,-500.0,0.00041342,30]
[310977073,1704838294020,-500.0,0.00041342,30]
[310977074,1704838294030,-500.0,0.00041342,30]
[310977075,1704838294040,-556.47,0.00041342,30]
[310977076,1704838294049,-500.0,0.00041342,30]
[310977077,1704838294059,-1383.38,0.00041342,30]
[310977078,1704838294070,-500.0,0.00041342,30]
[310977079,1704838294080,-500.0,0.00041342,30]
[310977080,1704838294089,-500.0,0.00041342,30]
[310977081,1704838294099,-794.95,0.00041342,30]
[310977082,1704838294108,-500.0,0.00041342,30]
[310977083,1704838294118,-583.28,0.00041342,30]
[310977084,1704838294128,-500.0,0.00041342,30]
[310977085,1704838294137,-500.0,0.00041342,30]
[310977086,1704838294147,-500.0,0.00041342,30]
[310977087,1704838294157,-500.0,0.00041342,30]
[310977088,1704838294167,-500.0,0.00041342,15]
[310977089,1704838294176,-500.0,0.00041342,30]
[310977090,1704838294186,-601.74159528,0.00041342,30]
[310977091,1704838294195,-500.0,0.00041342,30]
[310977092,1704838294205,-1656.81,0.00041342,30]
[310977093,1704838294215,-500.0,0.00041342,30]
[310977094,1704838294226,-500.0,0.00041342,30]
[310977095,1704838294236,-500.0,0.00041342,30]
[310977096,1704838294246,-500.0,0.00041342,30]
[310977097,1704838294257,-500.0,0.00041342,30]
[310977098,1704838294266,-500.0,0.00041342,2]
[310977099,1704838294277,-500.0,0.00041342,30]
[310977100,1704838294287,-500.0,0.00041342,30]
[310977101,1704838294297,-500.0,0.00041342,30]
[310977102,1704838294308,-500.0,0.00041342,30]
[310977103,1704838294427,-855.3,0.00041342,30]
[310977104,1704838294437,-500.0,0.00041342,30]
[310977105,1704838294448,-500.0,0.00041342,30]
[310977106,1704838294457,-500.0,0.00041342,30]
[310977107,1704838294467,-500.0,0.00041342,30]
[310977108,1704838294476,-500.0,0.00041342,30]
[310977109,1704838294485,-500.0,0.00041342,30]
[310977110,1704838294495,-500.0,0.00041342,30]
[310977111,1704838294504,-500.0,0.00041342,30]
[310977112,1704838294513,-500.0,0.00041342,30]
[310977113,1704838294522,-500.0,0.00041342,30]
[310977114,1704838294532,-500.0,0.00041342,30]
[310977115,1704838294541,-500.0,0.00041342,30]
[310977116,1704838294550,-500.0,0.00041342,30]
[310977117,1704838294560,-826.09,0.00041342,30]
[310977118,1704838294571,-500.0,0.00041342,30]
[310977119,1704838294581,-500.0,0.00041342,30]
[310977120,1704838294591,-500.0,0.00041342,30]
[310977121,1704838294601,-500.0,0.00041342,30]
[310977122,1704838294610,-500.0,0.00041342,30]
[310977123,1704838294619,-699.72,0.00041342,30]
[310977124,1704838294629,-500.0,0.00041342,30]
[310977125,1704838294639,-969.6,0.00041342,30]
[310977126,1704838294648,-500.0,0.00041342,2]
[310977127,1704838294658,-500.0,0.00041342,30]
[310977128,1704838294667,-500.0,0.00041342,30]
[310977129,1704838294676,-636.12,0.00041342,30]
[310977130,1704838294685,-884.22,0.00041342,30]
[310977131,1704838294694,-316.44555767,0.00041342,30]
[310977132,1704838294703,-809.17,0.00041342,30]
[310977133,1704838294713,-630.58830452,0.00041342,30]
[310977134,1704838294722,-500.0,0.00041342,30]
[310977135,1704838294731,-500.0,0.00041342,30]
[310977136,1704838294740,-500.0,0.00041342,30]
[310977137,1704838294750,-500.0,0.00041342,30]
[310977138,1704838294760,-500.0,0.00041342,30]
[310977139,1704838294769,-503.26471639,0.00041342,30]
[310977140,1704838294779,-254.63417543,0.00041342,30]
[310977141,1704838294789,-500.0,0.00041342,30]
[310977142,1704838294798,-500.0,0.00041342,30]
[310977143,1704838294809,-500.0,0.00041342,30]
[310977144,1704838294822,-1095.94,0.00041342,30]
[310977145,1704838294832,-500.0,0.00041342,30]
[310977146,1704838294842,-1092.75,0.00041342,30]
[310977147,1704838294852,-500.0,0.00041342,30]
[310977148,1704838294861,-500.0,0.00041342,30]
[310977149,1704838294871,-500.0,0.00041342,30]
[310977150,1704838294880,-500.0,0.00041342,30]
[310977151,1704838294890,-697.87,0.00041342,30]
[310977152,1704838294899,-500.0,0.00041342,30]
[310977153,1704838294908,-732.79,0.00041342,30]
[310977154,1704838294918,-500.0,0.00041342,30]
[310977155,1704838294927,-274.91142605,0.00041342,30]
[310977156,1704838294936,-500.0,0.00041342,30]
[310977157,1704838294946,-500.0,0.00041342,30]
[310977158,1704838294955,-169.13561993,0.00041342,30]
[310977159,1704838294965,-500.0,0.00041342,30]
[310977160,1704838294975,-1093.88,0.00041342,30]
[310977161,1704838294984,-500.0,0.00041342,30]
[310977162,1704838294993,-553.69,0.00041342,30]
[310977163,1704838295002,-911.96,0.00041342,30]